bitfinex/quotes_BTCUSD_20240815
["timestamp","ask_amount","ask_price","bid_price","bid_amount"]
[1723727103347,0.05063773,58954.0,58951.0,1.24732499]
[1723727103551,0.08577727,58953.0,58951.0,1.24532499]
[1723727103848,0.05063773,58953.0,58951.0,1.24832499]
[1723727104062,0.05063773,58954.0,58951.0,1.34862156]
[1723727104261,0.05063773,58958.0,58952.0,0.3838]
[1723727104513,0.05063773,58960.0,58952.0,0.3838]
[1723727104713,0.05063773,58961.0,58953.0,0.17155454]
[1723727105060,0.05063773,58960.0,58952.0,0.3838]
[1723727105278,0.05063773,58961.0,58953.0,1.24532499]
[1723727105902,0.05063773,58960.0,58953.0,1.24532499]
[1723727106141,0.0759566,58961.0,58953.0,1.24532499]
[1723727106142,0.05063773,58959.0,58953.0,1.24532499]
[1723727106538,0.05663773,58960.0,58954.0,0.1630125]
[1723727106732,0.08557313,58957.0,58953.0,1.24532499]
[1723727107230,0.05063773,58959.0,58953.0,1.24632499]
[1723727107549,0.006,58960.0,58953.0,1.24632499]
[1723727109044,0.05063773,58964.0,58953.0,1.24532499]
[1723727109226,0.05063773,58964.0,58954.0,0.1629125]
[1723727109628,0.05063773,58964.0,58955.0,1.43982499]
[1723727109629,0.002,58957.0,58955.0,1.43982499]
[1723727109825,0.002,58957.0,58956.0,0.7464]
[1723727109976,0.0683754,58968.0,58956.0,0.7464]
[1723727110179,0.08577727,58969.0,58956.0,0.7464]
[1723727110384,0.0759566,58972.0,58957.0,0.17155454]
[1723727110385,0.01,58964.0,58957.0,0.17155454]
[1723727110786,0.01,58964.0,58959.0,0.5785]
[1723727110988,0.05063773,58975.0,58965.0,0.3869]
[1723727111310,0.08577727,58973.0,58965.0,0.3869]
[1723727111663,0.12648706,58979.0,58965.0,0.55845454]
[1723727111664,0.06833076,58977.0,58965.0,0.55845454]
[1723727111868,0.06833076,58977.0,58966.0,1.40687953]
[1723727111869,0.01773594,58977.0,58966.0,1.40687953]
[1723727112070,0.006,58968.0,58966.0,1.40687953]
[1723727112364,0.006,58968.0,58967.0,0.5627]
[1723727112562,0.01773594,58977.0,58967.0,0.5627]
[1723727112563,0.01773594,58977.0,58967.0,0.73425454]
[1723727112810,0.01773594,58977.0,58968.0,0.4059]
[1723727113028,0.01773594,58977.0,58970.0,0.4059]
[1723727113029,0.01,58977.0,58970.0,0.4059]
[1723727113262,0.01,58977.0,58971.0,0.00339087]
[1723727113446,0.01,58977.0,58971.0,0.4059]
[1723727114052,0.00090751,58980.0,58972.0,0.17494507]
[1723727114260,0.00090751,58980.0,58972.0,0.17155454]
[1723727114469,0.00090751,58980.0,58973.0,0.06934599]
[1723727117089,0.00090751,58980.0,58974.0,1.23532499]
[1723727117694,0.00090751,58980.0,58977.0,0.1813]
[1723727117902,0.00090751,58980.0,58979.0,0.2884]
[1723727118530,0.00090751,58980.0,58979.0,0.6888]
[1723727118792,0.00090751,58980.0,58979.0,0.86035454]
[1723727118994,0.00090751,58980.0,58979.0,1.03190908]
[1723727119812,0.00090751,58980.0,58979.0,1.03890908]
[1723727121974,0.00090751,58980.0,58979.0,1.03190908]
[1723727122383,0.00090751,58980.0,58979.0,1.04390908]
[1723727123235,0.00907501,58988.0,58981.0,1.23350997]
[1723727123491,0.00907501,58988.0,58982.0,0.34310908]
[1723727123709,0.00907501,58988.0,58985.0,0.2884]
[1723727123972,0.00907501,58988.0,58985.0,0.45995454]
[1723727126049,0.00907501,58988.0,58986.0,1.4079645]
[1723727126248,0.00907501,58988.0,58987.0,0.5704]
[1723727126490,0.0081675,58988.0,58987.0,0.91350908]
[1723727127356,0.0081675,58988.0,58987.0,0.94961908]
[1723727127960,0.0081675,58988.0,58987.0,0.91550908]
[1723727128153,0.00906401,58998.0,58996.0,0.3901]
[1723727128353,0.00906401,59013.0,59008.0,0.1856]
[1723727128555,0.00906401,59013.0,59009.0,1.21518195]
[1723727129322,0.01772331,59020.0,59008.0,0.8889]
[1723727129323,0.01605133,59020.0,59011.0,0.3822]
[1723727129519,0.00906401,59021.0,59020.0,0.3822]
[1723727129862,0.00906401,59021.0,59020.0,1.76893649]
[1723727130013,0.00906401,59021.0,59020.0,2.31279103]
[1723727130603,0.00906401,59021.0,59020.0,2.50659103]
[1723727131745,0.00906401,59021.0,59020.0,2.51226513]
[1723727132200,0.00906401,59021.0,59020.0,2.52226513]
[1723727132668,0.00906401,59021.0,59020.0,2.51226513]
[1723727132870,0.00906401,59021.0,59020.0,2.13996513]
[1723727133073,0.00906401,59021.0,59020.0,2.14996513]
[1723727133484,0.00906401,59021.0,59020.0,2.13996513]
[1723727134135,0.00906401,59021.0,59020.0,1.22085605]
[1723727134573,0.00906401,59021.0,59020.0,0.00726037]
[1723727134574,0.24261855,59021.0,59020.0,0.00726037]
[1723727134780,0.26561855,59021.0,59011.0,1.21518195]
[1723727135003,0.08577727,59012.0,59011.0,1.21518195]
[1723727136046,0.08577727,59012.0,59011.0,1.21618195]
[1723727136489,0.1,59017.0,59011.0,1.21618195]
[1723727136490,0.1,59017.0,59011.0,1.24974098]
[1723727136718,0.18577727,59019.0,59011.0,1.24874098]
[1723727136933,0.001,59012.0,59011.0,1.21618195]
[1723727137355,0.17255454,59012.0,59011.0,1.21618195]
[1723727137830,0.33455454,59012.0,59011.0,0.001]
[1723727138033,0.44915454,59012.0,59011.0,0.001]
[1723727138249,0.44915454,59012.0,58999.0,1.21518195]
[1723727138250,0.062,59011.0,58999.0,1.21518195]
[1723727138457,0.08577727,59000.0,58994.0,1.21518195]
[1723727138663,0.062,58998.0,58994.0,1.21518195]
[1723727138940,0.062,58998.0,58986.0,0.3926]
[1723727138941,0.062,58998.0,58995.0,1.21518195]
[1723727139241,0.157,58998.0,58995.0,1.21518195]
[1723727139447,0.08577727,59006.0,58995.0,1.21518195]
[1723727139448,0.0916,59012.0,58995.0,1.25798294]
[1723727139657,0.0916,59012.0,58986.0,0.3926]
[1723727139658,0.338983,59000.0,58989.0,1.21518195]
[1723727139871,0.169497,58998.0,58990.0,1.21518195]
[1723727140079,0.17155454,58999.0,58990.0,1.21518195]
[1723727140289,0.338981,59001.0,58994.0,0.001]
[1723727140290,0.169505,58995.0,58994.0,0.001]
[1723727140710,0.0916,59012.0,58994.0,0.387]
[1723727140917,0.01042528,59005.0,58994.0,0.387]
[1723727141129,0.17155454,59005.0,58994.0,0.387]
[1723727141338,0.1,59004.0,58994.0,0.387]
[1723727141545,0.1,59004.0,58995.0,0.0009064]
[1723727141820,0.08577727,59001.0,58995.0,0.0009064]
[1723727142029,0.057,58999.0,58995.0,0.0009064]
[1723727142242,1.278121,58996.0,58995.0,0.0009064]
[1723727142474,0.05030564,59008.0,58997.0,0.4085]
[1723727142679,0.00906401,59021.0,59002.0,0.373079]
[1723727142881,0.00906401,59021.0,59008.0,0.3723]
[1723727143101,0.00906401,59021.0,59008.0,0.711235]
[1723727143300,0.00906401,59021.0,59009.0,0.01718106]
[1723727143421,0.00906401,59021.0,59009.0,0.01030761]
[1723727143645,0.08577727,59012.0,59009.0,0.0171494]
[1723727143865,0.17155454,59011.0,59009.0,0.0171494]
[1723727144074,0.17155454,59011.0,59003.0,0.51466362]
[1723727144496,0.17155454,59011.0,58995.0,0.30501524]
[1723727144497,0.18577727,59018.0,59005.0,0.384]
[1723727144710,0.1,59017.0,59005.0,0.384]
[1723727144912,0.1,59017.0,59006.0,0.01717609]
[1723727145310,0.1,59017.0,59011.0,0.062]
[1723727145711,0.1,59017.0,59012.0,0.01713608]
[1723727146008,0.00906401,59021.0,59015.0,0.169448]
[1723727146131,0.00906401,59021.0,59020.0,0.169434]
[1723727146331,0.00906401,59021.0,59020.0,0.508302]
[1723727146533,0.00906401,59021.0,59020.0,0.91428474]
[1723727146961,0.00906401,59021.0,59020.0,1.25315274]
[1723727147175,0.00906401,59021.0,59020.0,1.62270728]
[1723727147373,0.01606401,59021.0,59020.0,1.79426182]
[1723727147661,0.01606401,59021.0,59020.0,2.13312982]
[1723727148044,0.01606401,59021.0,59020.0,2.16723982]
[1723727148202,0.01606401,59021.0,59020.0,2.16923982]
[1723727148600,0.00906401,59021.0,59020.0,2.16923982]
[1723727148851,0.00906401,59021.0,59020.0,1.84237182]
[1723727149066,0.01006401,59021.0,59020.0,1.33194928]
[1723727149251,0.01006401,59021.0,59020.0,1.84237182]
[1723727149478,0.00906401,59021.0,59020.0,2.16723982]
[1723727149999,0.01006401,59021.0,59020.0,2.52010782]
[1723727150204,0.00907501,59027.0,59020.0,2.52010782]
[1723727150205,0.00906401,59038.0,59037.0,0.898155]
[1723727150406,0.00906401,59038.0,59037.0,1.57396691]
[1723727150611,0.00906401,59038.0,59037.0,1.94767895]
[1723727150817,0.00906401,59038.0,59037.0,2.62521895]
[1723727151023,0.00906401,59038.0,59037.0,2.79677349]
[1723727151229,0.00906401,59038.0,59037.0,2.96832803]
[1723727151957,0.00906401,59038.0,59037.0,2.96804303]
[1723727152423,0.00906401,59038.0,59037.0,1.59090895]
[1723727152710,0.00906401,59038.0,59037.0,1.20547857]
[1723727153576,0.00906401,59038.0,59037.0,0.01722704]
[1723727153577,0.36071855,59038.0,59037.0,0.01722704]
[1723727153812,0.86886455,59038.0,59037.0,0.01922704]
[1723727154056,0.86886455,59038.0,59037.0,0.002]
[1723727154057,1.59132855,59038.0,59037.0,0.002]
[1723727154277,0.74441855,59038.0,59037.0,0.002]
[1723727154939,0.74441855,59038.0,59030.0,0.51466362]
[1723727154940,0.39276401,59038.0,59030.0,0.51466362]
[1723727155156,0.18577727,59037.0,59029.0,1.18425153]
[1723727155360,0.18577727,59037.0,59031.0,0.01726702]
[1723727155570,0.18577727,59037.0,59030.0,0.01727368]
[1723727155790,0.00906401,59038.0,59030.0,0.01727368]
[1723727155791,0.00906401,59038.0,59032.0,0.01726035]
[1723727156009,0.00906401,59038.0,59035.0,0.16939]
[1723727156219,0.01206401,59038.0,59036.0,0.3931]
[1723727156430,0.01206401,59038.0,59036.0,0.4103337]
[1723727156852,0.00906401,59038.0,59036.0,0.44324727]
[1723727157318,0.00906401,59038.0,59036.0,0.4103337]
[1723727157969,0.00906401,59038.0,59036.0,0.0172337]
[1723727158410,0.08577727,59037.0,59032.0,0.002]
[1723727158855,0.08577727,59037.0,59033.0,1.18425153]
[1723727159275,0.37135454,59036.0,59033.0,1.18425153]
[1723727159477,0.169391,59035.0,59033.0,1.18425153]
[1723727159658,0.17155454,59034.0,59033.0,1.18425153]
[1723727160139,0.17155454,59034.0,59033.0,1.20150522]
[1723727160361,0.55525454,59034.0,59033.0,1.18425153]
[1723727160574,0.55525454,59034.0,59033.0,1.20150522]
[1723727160785,0.1,59034.0,59033.0,1.32133023]
[1723727160998,0.1,59034.0,59033.0,1.20150522]
[1723727161425,0.00906401,59038.0,59033.0,1.20150522]
[1723727161629,0.002,59035.0,59033.0,1.20150522]
[1723727161834,0.002,59035.0,59033.0,1.58820522]
[1723727162308,0.08577727,59034.0,59033.0,1.20150522]
[1723727162529,0.08677727,59034.0,59033.0,1.20150522]
[1723727162741,0.001,59034.0,59033.0,1.20150522]
[1723727162946,0.001,59034.0,59033.0,1.32165574]
[1723727163156,0.00906401,59038.0,59033.0,1.90585574]
[1723727163370,0.08577727,59036.0,59033.0,1.20150522]
[1723727164431,1.130667,59034.0,59033.0,1.20150522]
[1723727164636,0.96343454,59034.0,59033.0,0.01725369]
[1723727164840,0.55525454,59034.0,59033.0,0.01725369]
[1723727165048,0.55525454,59034.0,59026.0,1.18425153]
[1723727165265,0.08577727,59028.0,59026.0,1.18425153]
[1723727165493,0.42455527,59036.0,59020.0,0.0009064]
[1723727165494,0.0002,59039.0,59028.0,0.3723]
[1723727165690,0.0002,59039.0,59029.0,0.5001322]
[1723727165691,0.000824,59034.0,59029.0,0.5001322]
[1723727165896,0.000824,59034.0,59033.0,1.223082]
[1723727166348,0.001824,59034.0,59033.0,1.2374803]
[1723727166551,0.001824,59034.0,59033.0,1.40903484]
[1723727167067,0.001824,59034.0,59033.0,0.3904983]
[1723727167320,0.001824,59034.0,59033.0,0.0143983]
[1723727167777,0.001824,59034.0,59028.0,0.4008]
[1723727168016,0.000824,59034.0,59033.0,0.01345103]
[1723727168262,0.000824,59034.0,59028.0,0.493514]
[1723727168506,0.000824,59034.0,59033.0,0.01345103]
[1723727168770,0.000824,59034.0,59031.0,0.169401]
[1723727169029,0.000824,59034.0,59033.0,0.01344812]
[1723727169295,0.000824,59034.0,59032.0,0.01345478]
[1723727169559,0.000824,59034.0,59028.0,0.576209]
[1723727169941,0.000824,59034.0,59033.0,0.01344812]
[1723727170115,0.000824,59034.0,59023.0,0.4128]
[1723727170343,0.000824,59034.0,59020.0,0.3732064]
[1723727170344,0.000824,59034.0,59020.0,0.0009064]
[1723727170576,0.622493,59033.0,59020.0,0.0009064]
[1723727170863,0.622493,59033.0,59021.0,1.18425153]
[1723727170864,0.622497,59033.0,59021.0,1.18425153]
[1723727171081,0.2837,59033.0,59021.0,1.18425153]
[1723727171328,0.1,59032.0,59021.0,1.18425153]
[1723727171804,0.1,59032.0,59031.0,0.006]
[1723727172026,0.000824,59034.0,59031.0,0.006]
[1723727172226,0.000824,59034.0,59030.0,0.1991]
[1723727172459,0.000824,59034.0,59030.0,0.25995]
[1723727172732,0.000824,59034.0,59029.0,0.4094]
[1723727172958,0.000824,59034.0,59021.0,1.18525153]
[1723727172959,0.08577727,59031.0,59021.0,1.77675153]
[1723727173147,0.08577727,59031.0,59021.0,1.57995153]
[1723727173362,0.08577727,59031.0,59021.0,1.18425153]
[1723727173363,0.08577727,59025.0,59021.0,1.18425153]
[1723727174629,0.1,59029.0,59021.0,1.23130383]
[1723727174833,0.1,59030.0,59021.0,1.23130383]
[1723727175260,0.08577727,59031.0,59022.0,0.01126458]
[1723727175469,0.1,59032.0,59022.0,0.01126458]
[1723727175470,0.1,59032.0,59024.0,0.338844]
[1723727175667,0.001,59025.0,59024.0,0.169422]
[1723727176072,0.000824,59034.0,59023.0,0.4125]
[1723727176280,0.08577727,59032.0,59023.0,0.4125]
[1723727176486,0.08577727,59032.0,59021.0,1.35580607]
[1723727176487,0.08577727,59026.0,59021.0,1.18425153]
[1723727176701,0.08577727,59026.0,59022.0,1.18425153]
[1723727177321,0.08577727,59026.0,59022.0,1.18725153]
[1723727177781,0.08577727,59026.0,59022.0,1.18425153]
[1723727178810,0.08577727,59032.0,59022.0,1.30276732]
[1723727178995,0.001,59026.0,59022.0,1.31267372]
[1723727179652,0.08577727,59032.0,59022.0,1.30367372]
[1723727179872,0.100824,59034.0,59024.0,0.169422]
[1723727180076,0.000824,59034.0,59024.0,0.169422]
[1723727180281,0.000824,59034.0,59023.0,0.5712]
[1723727180282,0.000824,59034.0,59025.0,0.17155454]
[1723727180704,0.000824,59034.0,59025.0,0.34097354]
[1723727180906,0.000824,59034.0,59026.0,0.169416]
[1723727181118,0.000824,59034.0,59025.0,0.17155454]
[1723727181326,0.000824,59034.0,59025.0,0.338838]
[1723727181523,0.000824,59034.0,59025.0,0.169418]
[1723727181979,0.000824,59034.0,59024.0,0.338844]
[1723727182186,0.000824,59034.0,59027.0,0.169413]
[1723727182396,0.000824,59034.0,59025.0,0.169419]
[1723727182601,0.000824,59034.0,59026.0,1.18425153]
[1723727182804,0.000824,59034.0,59033.0,0.571796]
[1723727183454,0.000824,59034.0,59033.0,2.82019507]
[1723727183669,0.000824,59034.0,59033.0,3.15898807]
[1723727184507,0.000824,59037.0,59036.0,0.84694]
[1723727184719,0.000824,59037.0,59036.0,3.11757661]
[1723727184936,0.00906401,59038.0,59037.0,1.69158253]
[1723727185182,0.00906401,59038.0,59037.0,3.13427707]
[1723727185826,0.00906401,59038.0,59037.0,3.47304707]
[1723727186447,0.01006401,59038.0,59037.0,2.12796707]
[1723727186677,0.00924001,59038.0,59037.0,1.76731253]
[1723727186876,0.00924001,59038.0,59037.0,1.19342753]
[1723727187711,0.00824001,59038.0,59037.0,1.18342753]
[1723727187927,0.09401728,59038.0,59037.0,1.18342753]
[1723727188130,0.09501728,59038.0,59037.0,1.19742753]
[1723727188686,0.09401728,59038.0,59037.0,1.18342753]
[1723727188946,0.09401728,59038.0,59037.0,1.18642753]
[1723727189489,0.09319328,59038.0,59037.0,1.18642753]
[1723727189907,0.09319328,59038.0,59037.0,1.19650889]
[1723727189908,0.79361441,59038.0,59037.0,1.19650889]
[1723727190134,1.65943806,59038.0,59037.0,0.01308136]
[1723727190350,0.169395,59034.0,59023.0,1.18342753]
[1723727190559,0.33877,59037.0,59019.0,0.6068]
[1723727190560,0.08577727,59028.0,59027.0,0.51466362]
[1723727190759,0.18716242,59028.0,59024.0,1.19191576]
[1723727190981,0.05069228,59025.0,59024.0,1.18342753]
[1723727191421,0.07603843,59025.0,59024.0,1.18342753]
[1723727192031,0.07603843,59025.0,59024.0,1.30195156]
[1723727192262,0.34700525,59027.0,59024.0,1.30195156]
[1723727192263,0.05071144,59026.0,59024.0,1.31095156]
[1723727192448,0.001,59028.0,59024.0,1.31095156]
[1723727192726,0.10138515,59032.0,59025.0,0.169419]
[1723727192727,0.05071144,59030.0,59025.0,0.169419]
[1723727192917,0.12668192,59035.0,59027.0,0.3802]
[1723727192918,0.05071144,59031.0,59027.0,0.3802]
[1723727193125,0.05071144,59032.0,59029.0,0.169407]
[1723727193335,0.07603843,59034.0,59031.0,0.367801]
[1723727193336,0.05071144,59034.0,59031.0,0.367801]
[1723727193544,0.05050757,59034.0,59031.0,0.367801]
[1723727193755,0.07603843,59036.0,59031.0,0.1984]
[1723727193962,0.07603843,59037.0,59031.0,0.1984]
[1723727194170,0.07603843,59036.0,59032.0,0.34095354]
[1723727194387,0.07603843,59037.0,59034.0,0.3723]
[1723727194605,0.00741601,59038.0,59037.0,0.508155]
[1723727194808,0.00741601,59038.0,59037.0,2.17693348]
[1723727195513,0.00741601,59038.0,59037.0,2.75248802]
[1723727195716,0.00741601,59038.0,59037.0,1.58742753]
[1723727196147,0.00841601,59038.0,59037.0,1.58742753]
[1723727196485,0.00841601,59038.0,59037.0,1.75681253]
[1723727197110,0.00841601,59038.0,59037.0,2.09558253]
[1723727197382,0.00741601,59038.0,59037.0,1.75681253]
[1723727197597,0.00741601,59038.0,59037.0,2.77746161]
[1723727197822,0.00741601,59038.0,59037.0,2.77946161]
[1723727198040,0.00741601,59038.0,59037.0,2.78787299]
[1723727198268,0.0002,59039.0,59038.0,2.08685752]
[1723727198496,0.0002,59039.0,59038.0,1.74809352]
[1723727198702,0.0002,59039.0,59038.0,1.58211624]
[1723727198914,0.0002,59039.0,59038.0,1.17941624]
[1723727199338,0.17175454,59039.0,59038.0,1.17941624]
[1723727199540,0.0002,59039.0,59038.0,1.17941624]
[1723727199950,0.08597727,59039.0,59038.0,1.17941624]
[1723727200152,0.41640664,59039.0,59038.0,1.17941624]
[1723727200397,0.41568129,59039.0,59038.0,1.17941624]
[1723727200625,0.21272183,59039.0,59038.0,1.17101152]
[1723727200829,0.41567798,59039.0,59038.0,1.17101152]
[1723727201028,0.58823159,59039.0,59038.0,1.18842534]
[1723727201213,0.48684449,59039.0,59038.0,1.18842534]
[1723727201439,0.48684449,59039.0,59038.0,0.01741382]
[1723727201630,1.06666805,59039.0,59038.0,0.01741382]
[1723727201834,1.06666805,59039.0,59023.0,1.55521152]
[1723727201835,1.23130349,59039.0,59023.0,1.55521152]
[1723727201980,0.08577727,59032.0,59028.0,0.51466362]
[1723727202183,0.25733181,59032.0,59024.0,1.17101152]
[1723727202379,0.07604377,59029.0,59024.0,1.17101152]
[1723727202778,0.07604377,59028.0,59024.0,1.17101152]
[1723727203009,0.32373662,59029.0,59024.0,1.17101152]
[1723727203010,0.07604377,59027.0,59024.0,1.17101152]
[1723727203180,0.07604377,59027.0,59025.0,1.17101152]
[1723727203181,0.08577727,59026.0,59025.0,1.17101152]
[1723727203388,0.08577727,59026.0,59022.0,0.0009064]
[1723727203389,0.33337558,59026.0,59022.0,0.0009064]
[1723727203591,0.0507033,59024.0,59022.0,0.0009064]
[1723727203910,0.0507033,59023.0,59022.0,0.0009064]
[1723727204157,0.07604377,59024.0,59022.0,0.0009064]
[1723727204301,0.05070324,59023.0,59022.0,0.0009064]
[1723727204710,0.41305778,59023.0,59022.0,0.0009064]
[1723727204963,1.84434712,59023.0,59022.0,0.0009064]
[1723727205104,1.0927393,59023.0,59003.0,1.17101152]
[1723727205305,1.0927393,59023.0,58997.0,0.52145162]
[1723727205306,1.23910281,59012.0,58997.0,0.52145162]
[1723727205568,1.49416614,59012.0,58997.0,0.51466362]
[1723727205731,1.32549196,59012.0,58997.0,0.51466362]
[1723727205954,1.66440596,59012.0,58997.0,0.51466362]
[1723727206171,2.63390814,59012.0,58997.0,0.51466362]
[1723727206393,0.169495,58999.0,58997.0,0.51466362]
[1723727206593,0.7243262,58998.0,58997.0,0.51466362]
[1723727206795,0.7243262,58998.0,58985.0,1.57051152]
[1723727206796,0.169503,58996.0,58985.0,1.57051152]
[1723727207006,0.169503,58996.0,58985.0,1.17101152]
[1723727207007,0.44105754,58996.0,58985.0,1.17101152]
[1723727207186,0.62627772,58996.0,58985.0,1.17101152]
[1723727207412,0.77046526,58996.0,58985.0,1.17101152]
[1723727207566,0.60096344,58996.0,58985.0,1.17101152]
[1723727207870,0.27155454,58996.0,58985.0,1.17101152]
[1723727208043,0.44105754,58996.0,58985.0,1.17101152]
[1723727208259,0.32213391,58996.0,58985.0,1.17101152]
[1723727208461,0.1,58996.0,58985.0,1.17101152]
[1723727208682,0.05058009,58999.0,58985.0,1.17101152]
[1723727209028,0.17155454,58999.0,58995.0,0.0049064]
[1723727209610,0.17155454,58999.0,58995.0,0.0009064]
[1723727210483,0.45525454,58998.0,58995.0,0.0009064]
[1723727210704,0.169501,58997.0,58995.0,0.0009064]
[1723727210887,0.17155454,58996.0,58995.0,0.0009064]
[1723727211088,0.17155454,58996.0,58995.0,0.0019064]
[1723727211699,0.17155454,58996.0,58995.0,0.0009064]
[1723727212057,0.34105754,58996.0,58995.0,0.0009064]
[1723727212849,1.60916954,58996.0,58995.0,0.0009064]
[1723727213039,2.17857481,58996.0,58995.0,0.0019064]
[1723727213171,1.60916954,58996.0,58995.0,0.0019064]
[1723727213379,1.68486657,58996.0,58995.0,0.0019064]
[1723727213580,0.81211734,58996.0,58995.0,0.0019064]
[1723727213778,0.76165454,58996.0,58995.0,0.0019064]
[1723727214228,1.27016354,58996.0,58995.0,0.0019064]
[1723727214429,0.93115754,58996.0,58995.0,0.0009064]
[1723727214633,0.76565454,58996.0,58995.0,0.0009064]
[1723727214778,1.25116354,58996.0,58995.0,0.0009064]
[1723727214979,1.61316954,58996.0,58995.0,0.0009064]
[1723727215184,0.169516,58992.0,58979.0,1.68567514]
[1723727215449,0.08577727,58987.0,58980.0,1.17101152]
[1723727215624,0.17155454,58986.0,58980.0,1.18236021]
[1723727215842,0.1,58985.0,58980.0,1.18236021]
[1723727217173,0.50067173,58996.0,58981.0,0.11833602]
[1723727217174,0.1,58995.0,58981.0,0.11833602]
[1723727217375,0.08577727,59000.0,58986.0,0.33906]
[1723727217376,0.17155454,58994.0,58986.0,0.33906]
[1723727217576,0.17155454,58994.0,58983.0,0.6056]
[1723727217577,0.08577727,59006.0,58988.0,0.339047]
[1723727217777,0.17155454,59005.0,58990.0,0.4079]
[1723727217996,0.17155454,59005.0,58991.0,0.169516]
[1723727218232,0.17155454,59005.0,58991.0,0.01125333]
[1723727218976,0.1,59004.0,58991.0,0.01125333]
[1723727219175,0.08577727,59000.0,58991.0,0.01125333]
[1723727219595,0.08577727,59000.0,58991.0,0.18077033]
[1723727220003,0.08577727,59000.0,58991.0,0.01125333]
[1723727220285,0.17155454,58999.0,58991.0,0.01125333]
[1723727220500,0.08577727,58993.0,58991.0,0.01125333]
[1723727220700,0.1,58998.0,58991.0,0.01125333]
[1723727220905,0.17155454,58997.0,58991.0,0.01125333]
[1723727221026,0.1,58998.0,58991.0,0.01125333]
[1723727221232,0.1,58998.0,58991.0,0.01225333]
[1723727221498,0.25733181,58997.0,58991.0,0.01225333]
[1723727221891,0.25733181,58997.0,58991.0,0.01125333]
[1723727222069,0.169514,58992.0,58991.0,0.01125333]
[1723727222267,0.99119754,58992.0,58991.0,0.01225333]
[1723727222691,0.48265454,58992.0,58991.0,0.001]
[1723727222843,0.48265454,58992.0,58990.0,1.17101152]
[1723727223089,0.38033181,58991.0,58990.0,1.17101152]
[1723727224084,0.35733181,58991.0,58990.0,1.17101152]
[1723727224281,0.35733181,58991.0,58985.0,0.389]
[1723727224483,0.35733181,58991.0,58981.0,1.17101152]
[1723727224724,0.35733181,58991.0,58986.0,0.01128473]
[1723727224923,0.023,58990.0,58981.0,1.17101152]
[1723727225098,0.35733181,58991.0,58987.0,0.01127472]
[1723727225099,0.27155454,58991.0,58987.0,0.01127472]
[1723727225354,0.27155454,58991.0,58990.0,0.001]
[1723727225622,0.29455454,58991.0,58990.0,0.001]
[1723727225791,1.08680554,58991.0,58990.0,0.001]
[1723727226028,1.08680554,58991.0,58981.0,1.17101152]
[1723727226029,0.74777154,58991.0,58981.0,1.17101152]
[1723727226237,0.169524,58989.0,58981.0,1.17301152]
[1723727226443,0.023,58990.0,58982.0,0.01132477]
[1723727226444,0.1,58988.0,58982.0,0.01132477]
[1723727227337,0.55887727,58983.0,58982.0,0.01132477]
[1723727227541,0.89997181,58983.0,58982.0,0.01132477]
[1723727227754,1.36205181,58983.0,58982.0,0.01132477]
[1723727227975,0.85343181,58983.0,58972.0,1.17101152]
[1723727228230,0.85343181,58983.0,58962.0,0.178663]
[1723727228231,0.169569,58973.0,58968.0,1.17101152]
[1723727228482,0.169569,58973.0,58964.0,0.000825]
[1723727228483,0.17155454,58972.0,58964.0,0.000825]
[1723727228716,0.4661,58970.0,58969.0,0.01147709]
[1723727228974,0.4661,58970.0,58968.0,0.0114871]
[1723727228975,0.63765454,58970.0,58968.0,0.0114871]
[1723727229205,0.17155454,58969.0,58962.0,1.17550261]
[1723727230599,0.17155454,58969.0,58962.0,0.00449109]
[1723727231159,0.08577727,58968.0,58955.0,1.14824361]
[1723727231313,0.17155454,58967.0,58956.0,1.14824361]
[1723727232277,0.08577727,58966.0,58955.0,0.001]
[1723727232501,0.54765454,58965.0,58955.0,0.001]
[1723727232704,0.1,58964.0,58955.0,0.001]
[1723727232898,0.17155454,58963.0,58954.0,1.14824361]
[1723727233118,0.1,58962.0,58954.0,1.14824361]
[1723727233322,0.17155454,58961.0,58954.0,1.14824361]
[1723727234165,0.1,58962.0,58955.0,0.3944]
[1723727234373,0.005,58967.0,58955.0,0.3944]
[1723727234569,0.17155454,58966.0,58955.0,0.3944]
[1723727234806,0.1,58965.0,58955.0,0.3944]
[1723727234982,0.27155454,58965.0,58955.0,0.3944]
[1723727235185,0.1,58965.0,58956.0,0.169617]
[1723727235364,0.1,58965.0,58955.0,0.3944]
[1723727235570,0.01,58964.0,58955.0,0.3944]
[1723727236169,0.1,58969.0,58956.0,1.14824361]
[1723727236388,0.001,58965.0,58956.0,1.14824361]
[1723727236772,0.1,58967.0,58956.0,1.14824361]
[1723727237138,0.17155454,58966.0,58956.0,1.14824361]
[1723727237271,0.1,58965.0,58956.0,1.14824361]
[1723727237479,0.1,58965.0,58956.0,1.31785961]
[1723727237675,0.1,58965.0,58957.0,0.169614]
[1723727237898,0.1,58965.0,58956.0,1.31786061]
[1723727238184,0.1,58965.0,58958.0,0.169609]
[1723727238393,0.339094,58981.0,58956.0,1.48747861]
[1723727238629,0.4044,58981.0,58969.0,0.3958]
[1723727238833,0.17155454,58980.0,58970.0,1.14824361]
[1723727239040,0.46397727,58990.0,58971.0,0.1824]
[1723727239252,0.17155454,58989.0,58972.0,0.339143]
[1723727239468,0.17155454,58989.0,58978.0,0.169553]
[1723727239680,0.17155454,58989.0,58979.0,0.558051]
[1723727239900,0.17155454,58989.0,58979.0,0.3885]
[1723727240328,0.3782,58995.0,58979.0,1.53674361]
[1723727240545,0.17155454,58994.0,58980.0,1.68543861]
[1723727240761,0.17155454,58994.0,58980.0,1.34634361]
[1723727240964,0.08577727,58991.0,58980.0,1.34634361]
[1723727241188,0.17155454,58990.0,58980.0,1.34634361]
[1723727242208,0.08577727,58984.0,58980.0,1.34634361]
[1723727242414,0.17155454,58983.0,58980.0,1.14824361]
[1723727242624,0.17155454,58983.0,58976.0,1.14824361]
[1723727242830,0.1,58982.0,58976.0,1.14824361]
[1723727243031,0.27155454,58982.0,58976.0,1.14824361]
[1723727243240,0.27155454,58982.0,58974.0,0.4135]
[1723727243241,0.17155454,58981.0,58970.0,0.192]
[1723727243444,0.17155454,58981.0,58967.0,1.52884361]
[1723727243445,0.46697727,58978.0,58967.0,1.52884361]
[1723727243645,0.46697727,58978.0,58968.0,1.14824361]
[1723727243646,0.17155454,58977.0,58968.0,1.14824361]
[1723727244066,0.17155454,58977.0,58958.0,0.0009086]
[1723727244067,0.08577727,58971.0,58958.0,0.0009086]
[1723727244296,0.4074,58969.0,58958.0,0.51557222]
[1723727244484,0.17155454,58968.0,58958.0,0.0009086]
[1723727245100,0.169564,58975.0,58960.0,0.3904]